bitfinex-derivatives/quotes_BTCF0:USTF0_20250211
["timestamp","ask_amount","ask_price","bid_price","bid_amount"]
[1739297972089,0.6434632,95899.0,95898.0,0.00515638]
[1739297972684,0.5693432,95899.0,95898.0,0.00515638]
[1739297972888,0.5272329,95907.0,95898.0,0.36595638]
[1739297973089,0.07412,95906.0,95899.0,0.157]
[1739297974285,0.07412,95906.0,95902.0,0.2085355]
[1739297974788,0.01116666,95907.0,95902.0,0.2085355]
[1739297974990,0.18608497,95909.0,95902.0,0.2085355]
[1739297975686,0.19713094,95909.0,95899.0,0.161]
[1739297977102,0.27117094,95909.0,95902.0,0.001]
[1739297977992,0.27117094,95909.0,95900.0,0.3608]
[1739297978195,0.08508597,95909.0,95900.0,0.3608]
[1739297978882,0.01104597,95909.0,95900.0,0.3608]
[1739297979089,0.07408,95911.0,95901.0,0.2085385]
[1739297979799,0.19868903,95911.0,95901.0,0.2085385]
[1739297980393,0.19868903,95911.0,95902.0,0.001]
[1739297981087,0.2085218,95909.0,95900.0,0.3608]
[1739297981291,0.074,95910.0,95901.0,0.002]
[1739297982195,0.074,95910.0,95902.0,0.001]
[1739297983795,0.074,95910.0,95901.0,0.210538]
[1739297984096,0.08525741,95912.0,95901.0,0.210538]
[1739297984296,0.07388,95912.0,95901.0,0.210538]
[1739297984496,0.07388,95912.0,95902.0,0.001]
[1739297985291,0.07388,95912.0,95901.0,0.210538]
[1739297985801,0.12460903,95910.0,95901.0,0.210538]
[1739297986685,0.12460903,95910.0,95901.0,0.208538]
[1739297986886,0.12460903,95910.0,95902.0,0.001]
[1739297987193,0.2085225,95909.0,95902.0,0.001]
[1739297987500,0.2085225,95909.0,95901.0,0.002]
[1739297988288,0.2085225,95909.0,95902.0,0.001]
[1739297989397,0.2085246,95908.0,95902.0,0.001]
[1739297990296,0.2085246,95908.0,95901.0,0.002]
[1739297991192,0.2085246,95908.0,95902.0,0.001]
[1739297991999,0.2085246,95908.0,95901.0,0.002]
[1739297994096,0.2085246,95908.0,95902.0,0.001]
[1739297994496,0.2085246,95908.0,95903.0,0.3608]
[1739297995299,0.05072021,95907.0,95903.0,0.3608]
[1739297996595,0.05072021,95907.0,95903.0,0.3618]
[1739297998607,0.208532,95905.0,95903.0,0.3618]
[1739297999404,0.208532,95905.0,95903.0,0.001]
[1739298000306,0.23680518,95907.0,95903.0,0.001]
[1739298000908,0.2085323,95904.0,95903.0,0.001]
[1739298002307,0.23680518,95907.0,95903.0,0.001]
[1739298003707,0.15513258,95904.0,95903.0,0.001]
[1739298007209,0.15513258,95904.0,95901.0,0.5704983]
[1739298007516,0.005,95904.0,95901.0,0.5693383]
[1739298008103,0.003,95904.0,95901.0,0.5693383]
[1739298008302,0.005,95904.0,95901.0,0.5693383]
[1739298008899,0.005,95904.0,95903.0,0.2085345]
[1739298009799,0.003,95904.0,95903.0,0.2085345]
[1739298010405,0.002,95904.0,95903.0,0.2085345]
[1739298010606,0.002,95904.0,95903.0,0.21984361]
[1739298010806,0.15513258,95907.0,95906.0,0.208528]
[1739298011007,0.15513258,95907.0,95906.0,0.569328]
[1739298012103,0.2085163,95912.0,95906.0,0.3608]
[1739298012309,0.2085163,95912.0,95911.0,0.2085171]
[1739298013103,0.18608497,95914.0,95911.0,0.2085171]
[1739298013304,0.18608497,95914.0,95910.0,0.3608]
[1739298013512,0.18608497,95914.0,95912.0,0.2085147]
[1739298014404,0.19108497,95914.0,95912.0,0.2085147]
[1739298014606,0.00806124,95914.0,95912.0,0.2085147]
[1739298015613,0.00806124,95914.0,95910.0,0.3608]
[1739298015914,0.2085128,95913.0,95910.0,0.3608]
[1739298016613,0.2085155,95912.0,95910.0,0.3608]
[1739298016815,0.05071277,95913.0,95899.0,0.3226]
[1739298017023,0.208527,95907.0,95899.0,0.3226]
[1739298017217,0.208527,95907.0,95902.0,0.3608]
[1739298019011,0.208527,95907.0,95902.0,0.3618]
[1739298021317,0.07336,95909.0,95902.0,0.3618]
[1739298022117,0.2818822,95909.0,95902.0,0.5703367]
[1739298023712,0.2930432,95909.0,95903.0,0.2085335]
[1739298024312,0.05071915,95908.0,95903.0,0.2085335]
[1739298025619,0.05071915,95908.0,95903.0,0.2095335]
[1739298026319,0.05071915,95908.0,95901.0,0.3608]
[1739298026320,0.2085263,95907.0,95901.0,0.3608]
[1739298026507,0.2085263,95907.0,95903.0,0.001]
[1739298027108,0.2085305,95905.0,95903.0,0.001]
[1739298028322,0.2085305,95905.0,95901.0,0.3608]
[1739298028510,0.2085305,95905.0,95901.0,0.3628]
[1739298029119,0.2095305,95905.0,95901.0,0.3628]
[1739298029318,0.2115305,95905.0,95901.0,0.3608]
[1739298029520,0.2085337,95904.0,95901.0,0.3608]
[1739298030224,0.208541,95900.0,95899.0,0.0525]
[1739298030424,0.2085432,95899.0,95898.0,0.00015638]
[1739298031919,0.2115432,95899.0,95898.0,0.00015638]
[1739298032425,0.2175432,95899.0,95898.0,0.00015638]
[1739298035635,0.2085524,95895.0,95881.0,0.0524]
[1739298035930,0.3608,95890.0,95881.0,0.0524]
[1739298037630,0.07392,95889.0,95881.0,0.0524]
[1739298038129,0.07392,95889.0,95881.0,0.0544]
[1739298038324,0.07392,95889.0,95881.0,0.0604]
[1739298038523,0.07392,95889.0,95881.0,0.0584]
[1739298038722,0.07392,95889.0,95881.0,0.0604]
[1739298039127,0.0531,95890.0,95881.0,0.0604]
[1739298039432,0.07396,95889.0,95881.0,0.0584]
[1739298039832,0.15505916,95887.0,95881.0,0.0534]
[1739298041632,0.15505916,95887.0,95881.0,0.0524]
[1739298042129,0.15505916,95887.0,95886.0,0.3608]
[1739298042530,0.15605916,95887.0,95886.0,0.3608]
[1739298043142,0.15505916,95887.0,95886.0,0.3608]
[1739298043429,0.16005916,95887.0,95886.0,0.3608]
[1739298043636,0.005,95887.0,95886.0,0.3608]
[1739298043829,0.005,95887.0,95881.0,0.0524]
[1739298044026,0.01587049,95887.0,95881.0,0.0524]
[1739298044333,0.01787049,95887.0,95881.0,0.0524]
[1739298045338,0.01087049,95887.0,95881.0,0.0524]
[1739298045532,0.001,95887.0,95881.0,0.0524]
[1739298047138,0.00089675,95887.0,95881.0,0.0524]
[1739298047339,0.00089675,95887.0,95886.0,0.3608]
[1739298048233,0.00089675,95887.0,95881.0,0.0524]
[1739298048429,0.005,95887.0,95881.0,0.0524]
[1739298048624,0.007,95887.0,95881.0,0.0524]
[1739298049430,0.003,95887.0,95881.0,0.0524]
[1739298049632,0.001,95887.0,95881.0,0.0524]
[1739298051039,0.2095693,95887.0,95881.0,0.0524]
[1739298051239,0.2085721,95886.0,95881.0,0.0524]
[1739298052335,0.2095721,95886.0,95881.0,0.0524]
[1739298055145,0.001,95886.0,95881.0,0.0524]
[1739298055439,0.2085735,95886.0,95881.0,0.0524]
[1739298055638,0.2105735,95886.0,95881.0,0.0524]
[1739298055941,0.2115735,95886.0,95881.0,0.0524]
[1739298056545,0.003,95886.0,95885.0,0.2085736]
[1739298057444,0.002,95886.0,95885.0,0.2085736]
[1739298058241,0.001,95886.0,95885.0,0.2105736]
[1739298058444,0.01109635,95890.0,95887.0,0.2085685]
[1739298058640,0.07368,95891.0,95889.0,0.3608]
[1739298059237,0.07368,95891.0,95889.0,0.5693647]
[1739298059436,0.00015638,95895.0,95894.0,0.2085541]
[1739298059634,0.01116771,95895.0,95894.0,0.2085541]
[1739298059835,0.00015638,95895.0,95894.0,0.2085541]
[1739298060945,0.00315638,95895.0,95894.0,0.2085541]
[1739298062235,0.01015638,95895.0,95894.0,0.2095541]
[1739298062635,0.06087838,95895.0,95894.0,0.2095541]
[1739298065744,0.06087838,95895.0,95894.0,0.001]
[1739298067744,0.26943018,95895.0,95894.0,0.001]
[1739298069440,0.21870818,95895.0,95894.0,0.001]
[1739298070338,0.21970818,95895.0,95894.0,0.001]
[1739298070538,0.2085586,95892.0,95885.0,0.08228852]
[1739298070739,0.2085586,95892.0,95882.0,0.57058]
[1739298070946,0.2085586,95892.0,95882.0,0.56938]
[1739298072039,0.2085608,95891.0,95882.0,0.56938]
[1739298074145,0.2105608,95891.0,95882.0,0.56938]
[1739298074643,0.2095608,95891.0,95882.0,0.56938]
[1739298074843,0.2085608,95891.0,95882.0,0.57038]
[1739298075240,0.07352,95891.0,95882.0,0.3618]
[1739298075445,0.208578,95883.0,95882.0,0.3618]
[1739298076436,0.208578,95883.0,95882.0,0.3648]
[1739298076635,0.208578,95883.0,95882.0,0.3658]
[1739298076842,0.208578,95883.0,95882.0,0.005]
[1739298077050,0.208578,95883.0,95882.0,0.001]
[1739298077347,0.003,95883.0,95877.0,0.3608]
[1739298077548,0.2085911,95877.0,95876.0,0.00015638]
[1739298078839,0.2820711,95877.0,95876.0,0.00015638]
[1739298079141,0.07348,95877.0,95863.0,0.25053874]
[1739298079450,0.07348,95877.0,95863.0,0.24937874]
[1739298079451,0.2086197,95864.0,95863.0,0.24937874]
[1739298080246,0.2086197,95864.0,95863.0,0.26137874]
[1739298080445,0.2086458,95852.0,95851.0,0.29485503]
[1739298080636,0.07372,95852.0,95851.0,0.29485503]
[1739298080837,0.0738,95853.0,95851.0,0.65565503]
[1739298081147,0.0738,95853.0,95851.0,0.29485503]
[1739298081342,0.08444612,95853.0,95851.0,0.29485503]
[1739298081853,0.001,95852.0,95843.0,0.3608]
[1739298082246,0.2096457,95852.0,95851.0,0.03765138]
[1739298082651,0.2116457,95852.0,95851.0,0.03765138]
[1739298083247,0.2096457,95852.0,95851.0,0.03765138]
[1739298083453,0.2106457,95852.0,95851.0,0.03765138]
[1739298083851,0.2096457,95852.0,95851.0,0.03765138]
[1739298084152,0.2136457,95852.0,95851.0,0.03765138]
[1739298084344,0.2146457,95852.0,95851.0,0.03765138]
[1739298086851,0.26538805,95852.0,95851.0,0.03765138]
[1739298088349,0.2086631,95844.0,95843.0,0.3608]
[1739298089157,0.3608,95851.0,95841.0,0.00156451]
[1739298089158,0.2086674,95842.0,95841.0,0.00156451]
[1739298089356,0.3608,95842.0,95825.0,0.3608]
[1739298089562,0.2087023,95826.0,95825.0,0.3608]
[1739298089859,0.07412,95826.0,95825.0,0.3608]
[1739298090250,0.07412,95826.0,95821.0,0.0555]
[1739298091265,0.2828222,95826.0,95825.0,0.004]
[1739298091757,0.2087121,95822.0,95821.0,0.005]
[1739298092153,0.08684435,95826.0,95821.0,0.005]
[1739298092855,0.09984435,95826.0,95821.0,0.005]
[1739298093464,0.08784435,95826.0,95814.0,0.3608]
[1739298093761,0.01872435,95826.0,95814.0,0.3608]
[1739298093964,0.07936,95825.0,95814.0,0.3608]
[1739298094762,0.01872435,95826.0,95814.0,0.3608]
[1739298094962,0.07944,95825.0,95814.0,0.3608]
[1739298095161,0.12559664,95824.0,95814.0,0.3608]
[1739298095956,0.08044,95825.0,95814.0,0.3618]
[1739298096564,0.08044,95825.0,95814.0,0.3608]
[1739298096763,0.004,95824.0,95814.0,0.3608]
[1739298097061,0.004,95824.0,95822.0,0.3608]
[1739298097255,0.00015646,95833.0,95823.0,0.1628]
[1739298097462,0.00015646,95833.0,95832.0,0.3608]
[1739298098052,0.01115702,95833.0,95832.0,0.3608]
[1739298098258,0.01115702,95833.0,95823.0,0.28839664]
[1739298098457,0.14075366,95833.0,95823.0,0.1628]
[1739298098663,0.01515702,95833.0,95823.0,0.1628]
[1739298099168,0.02915702,95833.0,95823.0,0.1628]
[1739298099370,0.02915702,95833.0,95830.0,0.3608]
[1739298099558,0.02915702,95833.0,95823.0,0.1628]
[1739298099758,0.15475366,95833.0,95823.0,0.1628]
[1739298099962,0.14475366,95833.0,95823.0,0.1628]
[1739298100162,0.15175366,95833.0,95823.0,0.1628]
[1739298100358,0.02615702,95833.0,95823.0,0.1628]
[1739298100563,0.01915702,95833.0,95832.0,0.3608]
[1739298101470,0.01215702,95833.0,95832.0,0.3608]
[1739298102266,0.01315702,95833.0,95832.0,0.3608]
[1739298102875,0.01415702,95833.0,95832.0,0.3608]
[1739298103364,0.2086946,95830.0,95822.0,0.00116]
[1739298103565,0.2086946,95830.0,95811.0,0.5221]
[1739298104560,0.2086946,95830.0,95822.0,0.001]
[1739298105667,0.2087034,95826.0,95822.0,0.001]
[1739298106267,0.2087034,95826.0,95822.0,0.002]
[1739298107173,0.2087034,95826.0,95822.0,0.001]
[1739298107367,0.2087069,95824.0,95822.0,0.001]
[1739298107968,0.08016,95823.0,95822.0,0.001]
[1739298109167,0.08016,95823.0,95811.0,0.5221]
[1739298109168,0.08416,95823.0,95811.0,0.5221]
[1739298109368,0.09516,95823.0,95822.0,0.001]
[1739298110564,0.09616,95823.0,95822.0,0.001]
[1739298111269,0.10689995,95823.0,95822.0,0.001]
[1739298111778,0.30860995,95823.0,95811.0,0.5231]
[1739298111979,0.12559664,95821.0,95811.0,0.5231]
[1739298112378,0.12559664,95821.0,95811.0,0.5221]
[1739298113178,0.10789995,95823.0,95813.0,0.2087288]
[1739298113380,0.10789995,95823.0,95815.0,0.208726]
[1739298113572,0.002,95821.0,95815.0,0.208726]
[1739298114276,0.005,95821.0,95819.0,0.3608]
[1739298114476,0.005,95821.0,95820.0,0.2087152]
[1739298114676,0.001,95821.0,95820.0,0.2087152]
[1739298114981,0.007,95821.0,95820.0,0.2087152]
[1739298115475,0.002,95821.0,95820.0,0.2087152]
[1739298115681,0.008,95821.0,95820.0,0.2097152]
[1739298116478,0.006,95821.0,95820.0,0.2097152]
[1739298116675,0.008,95821.0,95820.0,0.2097152]
[1739298117079,0.006,95821.0,95820.0,0.2097152]
[1739298117277,0.009,95821.0,95820.0,0.2097152]
[1739298119075,0.00015646,95833.0,95832.0,0.2086889]
[1739298119275,0.00015646,95833.0,95832.0,0.5694889]
[1739298120382,0.18588843,95838.0,95837.0,0.2086781]
[1739298120583,0.18588843,95838.0,95837.0,0.5694781]
[1739298121578,0.18588843,95838.0,95837.0,0.5704781]
[1739298121783,0.20188843,95838.0,95837.0,0.5704781]
[1739298122481,0.19088843,95838.0,95837.0,0.3618]
[1739298122786,0.39956423,95838.0,95837.0,0.001]
[1739298123287,0.2086758,95838.0,95837.0,0.002]
[1739298123883,0.2086758,95838.0,95833.0,0.0536]
[1739298124185,0.2096758,95838.0,95837.0,0.005]
[1739298124380,0.2116758,95838.0,95837.0,0.005]
[1739298124581,0.2116758,95838.0,95835.0,0.208681]
[1739298124582,0.003,95838.0,95835.0,0.208681]
[1739298124781,0.007,95838.0,95837.0,0.001]
[1739298125482,0.007,95838.0,95837.0,0.209678]
[1739298125685,0.008,95838.0,95837.0,0.209678]
[1739298125986,0.008,95838.0,95837.0,0.001]
[1739298126293,0.007,95838.0,95837.0,0.001]
[1739298126676,0.009,95838.0,95837.0,0.001]
[1739298127182,0.2146758,95838.0,95832.0,0.3608]
[1739298127384,0.2186758,95838.0,95837.0,0.001]
[1739298128481,0.2116758,95838.0,95832.0,0.3608]
[1739298128681,0.2176758,95838.0,95832.0,0.3618]
[1739298129180,0.2086805,95836.0,95832.0,0.3618]
[1739298130189,0.002,95838.0,95832.0,0.3608]
[1739298130487,0.2086868,95833.0,95832.0,0.3608]
[1739298131580,0.2086955,95829.0,95820.0,0.0562]
[1739298131979,0.2086955,95829.0,95813.0,0.0511]
[1739298132393,0.2874555,95829.0,95813.0,0.0511]
[1739298133203,0.2874555,95829.0,95810.0,0.3608]
[1739298133204,0.2087303,95813.0,95810.0,0.3608]
[1739298134483,0.07868,95814.0,95810.0,0.3608]
[1739298134688,0.0523,95812.0,95800.0,0.1]
[1739298134887,0.12559664,95810.0,95800.0,0.1]
[1739298135295,0.08936629,95814.0,95800.0,0.22559664]
[1739298135495,0.08936629,95814.0,95801.0,0.1078]
[1739298136201,0.08936629,95814.0,95810.0,0.001]
[1739298136898,0.08936629,95814.0,95801.0,0.1108]
[1739298136899,0.001,95810.0,95801.0,0.1108]
[1739298137295,0.001,95810.0,95800.0,0.11]
[1739298137296,0.2087463,95806.0,95800.0,0.11]
[1739298137492,0.001,95810.0,95800.0,0.11]
[1739298137898,0.33433134,95811.0,95810.0,0.002]
[1739298138102,0.2087347,95811.0,95810.0,0.002]
[1739298138695,0.001,95810.0,95800.0,0.11]
[1739298138898,0.12659664,95810.0,95800.0,0.11]
[1739298139196,0.07904,95809.0,95800.0,0.114]
[1739298139397,0.2087475,95806.0,95800.0,0.114]
[1739298139601,0.208753,95803.0,95800.0,0.114]
[1739298139795,0.2087565,95801.0,95800.0,0.114]
[1739298139996,0.4174,95805.0,95779.0,0.3608]
[1739298139997,0.0529,95804.0,95779.0,0.3608]
[1739298140191,0.12559664,95790.0,95779.0,0.3608]
[1739298140396,0.208788,95787.0,95779.0,0.3608]
[1739298140705,0.053,95786.0,95779.0,0.3608]
[1739298141397,0.2087994,95782.0,95779.0,0.3608]
[1739298142710,0.06358165,95786.0,95779.0,0.3648]
[1739298142896,0.01058165,95786.0,95779.0,0.3648]
[1739298143096,0.07888,95786.0,95779.0,0.3608]
[1739298143296,0.07888,95786.0,95779.0,0.3668]
[1739298143297,0.001,95782.0,95779.0,0.3668]
[1739298143799,0.08188,95786.0,95779.0,0.3638]
[1739298144305,0.07988,95786.0,95784.0,0.2087925]
[1739298145005,0.01076008,95797.0,95781.0,0.2087986]
[1739298145309,0.12716275,95810.0,95796.0,0.3608]
[1739298145504,0.12716275,95810.0,95797.0,0.1075]
[1739298145807,0.01092746,95801.0,95797.0,0.1075]
[1739298146101,0.00015654,95801.0,95797.0,0.1075]
[1739298147198,0.01094371,95801.0,95797.0,0.1075]
[1739298147406,0.01194371,95801.0,95797.0,0.1075]
[1739298147605,0.01194371,95801.0,95800.0,0.2087587]
[1739298148220,0.00064,95819.0,95798.0,0.0563]
[1739298148403,0.18588843,95820.0,95818.0,0.3608]
[1739298148915,0.19676554,95820.0,95818.0,0.3608]
[1739298149313,0.19676554,95820.0,95819.0,0.0559]
[1739298149906,0.18988843,95820.0,95819.0,0.0559]
[1739298150098,0.18988843,95820.0,95819.0,0.1108]
[1739298150506,0.19988843,95820.0,95819.0,0.0559]
[1739298151011,0.014,95820.0,95819.0,0.4167]
[1739298152408,0.01,95820.0,95819.0,0.4177]
[1739298152612,0.008,95820.0,95819.0,0.4177]
[1739298156305,0.008,95820.0,95819.0,0.6264172]
[1739298162117,0.008,95820.0,95819.0,0.4177]
[1739298163020,0.003,95820.0,95819.0,0.0589]
[1739298163330,0.2087347,95811.0,95810.0,0.34937505]
[1739298163519,0.2087347,95811.0,95809.0,0.00015654]
[1739298163715,0.0558,95810.0,95809.0,0.00015654]
[1739298164614,0.4166,95810.0,95809.0,0.00015654]
[1739298165016,0.55319599,95810.0,95796.0,0.00156585]
[1739298165212,0.2087633,95798.0,95796.0,0.00156585]
[1739298166225,0.2087633,95798.0,95796.0,0.00456585]
[1739298166421,0.13656,95800.0,95796.0,0.00456585]
[1739298166624,0.13656,95800.0,95796.0,0.00756585]
[1739298167528,0.3453187,95800.0,95796.0,0.00756585]
[1739298167722,0.08016,95800.0,95797.0,0.2087648]
[1739298168121,0.001,95798.0,95797.0,0.2087648]
[1739298168326,0.001,95798.0,95796.0,0.00656585]
[1739298168627,0.001,95798.0,95796.0,0.00356585]
[1739298168824,0.001,95798.0,95797.0,0.2087652]
[1739298169511,0.01067227,95805.0,95797.0,0.2087652]
[1739298169713,0.00015654,95807.0,95801.0,0.3608]
[1739298170523,0.3608,95806.0,95797.0,0.002]
[1739298171125,0.5695455,95806.0,95797.0,0.002]
[1739298171330,0.001,95798.0,95797.0,0.004]
[1739298172034,0.5705455,95806.0,95797.0,0.004]
[1739298172221,0.2087539,95803.0,95797.0,0.004]
[1739298172530,0.2087539,95803.0,95801.0,0.001]
[1739298172919,0.3608,95806.0,95801.0,0.001]
[1739298173232,0.3608,95806.0,95797.0,0.004]
[1739298173620,0.3608,95806.0,95801.0,0.001]
[1739298174328,0.001,95803.0,95801.0,0.001]
[1739298175024,0.2087543,95802.0,95801.0,0.003]
[1739298175620,0.2087543,95802.0,95796.0,0.00156585]
[1739298175819,0.2087543,95802.0,95801.0,0.003]
[1739298177124,0.2087543,95802.0,95801.0,0.001]
[1739298177318,0.2087543,95802.0,95801.0,0.003]
[1739298177319,0.2097543,95802.0,95801.0,0.003]
[1739298181831,0.12559664,95794.0,95775.0,0.3608]
[1739298182033,0.2087987,95782.0,95778.0,0.00156615]
[1739298182228,0.208787,95787.0,95778.0,0.00156615]
[1739298182529,0.12559664,95790.0,95778.0,0.00156615]
[1739298182727,0.2088045,95779.0,95778.0,0.00156615]
[1739298184124,0.2118045,95779.0,95778.0,0.00656615]
[1739298185630,0.2227355,95779.0,95778.0,0.00656615]
[1739298187224,0.003,95779.0,95778.0,0.21537285]
[1739298188440,0.0794,95798.0,95778.0,0.00656615]
[1739298188625,0.36439367,95802.0,95795.0,0.2087693]
[1739298188831,0.15563897,95802.0,95796.0,0.0536]
[1739298189040,0.1662146,95802.0,95796.0,0.0536]
[1739298189240,0.2087644,95798.0,95796.0,0.0536]
[1739298189638,0.2117644,95798.0,95796.0,0.0536]
[1739298190239,0.2107644,95798.0,95796.0,0.0566]
[1739298190943,0.2097644,95798.0,95796.0,0.004]
[1739298194537,0.2088088,95777.0,95776.0,0.36236615]
[1739298195538,0.2087973,95783.0,95776.0,0.3608]
[1739298196041,0.001,95777.0,95776.0,0.3648]
[1739298196242,0.003,95777.0,95776.0,0.3658]
[1739298197045,0.003,95783.0,95776.0,0.3658]
[1739298198038,0.002,95777.0,95776.0,0.3658]
[1739298198550,0.003,95777.0,95776.0,0.3638]
[1739298200841,0.001,95777.0,95776.0,0.3638]
[1739298201443,0.001,95777.0,95776.0,0.3628]
[1739298201749,0.003,95777.0,95776.0,0.3638]
[1739298201947,0.2118088,95777.0,95776.0,0.3638]
[1739298202538,0.2118088,95777.0,95776.0,0.003]
[1739298204040,0.003,95777.0,95776.0,0.003]
[1739298204241,0.2118088,95777.0,95776.0,0.003]
[1739298204441,0.2910488,95777.0,95776.0,0.003]
[1739298205448,0.2910488,95777.0,95761.0,0.2620425]
[1739298205449,0.2088403,95763.0,95750.0,0.01249161]
[1739298205648,0.12559664,95766.0,95750.0,0.01249161]
[1739298205844,0.0514,95762.0,95750.0,0.01249161]
[1739298206645,0.0514,95762.0,95756.0,0.00456616]
[1739298207040,0.002,95763.0,95759.0,0.3608]
[1739298207240,0.001,95763.0,95759.0,0.3608]
[1739298207439,0.001,95762.0,95759.0,0.3608]
[1739298208346,0.002,95762.0,95759.0,0.3608]
[1739298208543,0.08308,95761.0,95759.0,0.3608]
[1739298208847,0.08308,95761.0,95756.0,0.00256616]
[1739298209551,0.08308,95761.0,95756.0,0.00156616]
[1739298209751,0.08408,95761.0,95756.0,0.00156616]
[1739298210349,0.08508,95761.0,95756.0,0.00156616]
[1739298212452,0.2088524,95757.0,95756.0,0.00156616]
[1739298212752,0.2088524,95757.0,95750.0,0.01249161]
[1739298212954,0.0553,95756.0,95750.0,0.01249161]
[1739298213153,0.2088655,95751.0,95750.0,0.01249161]
[1739298213652,0.3608,95751.0,95730.0,0.3608]
[1739298213953,0.33448664,95740.0,95727.0,0.3608]
[1739298214147,0.33448664,95740.0,95721.0,0.1083]
[1739298214148,0.3608,95734.0,95721.0,0.1083]
[1739298214336,0.3608,95734.0,95727.0,0.18761528]
[1739298214747,0.4147,95734.0,95727.0,0.18761528]
[1739298215348,0.4137,95734.0,95727.0,0.18761528]
[1739298215651,0.4147,95734.0,95727.0,0.18761528]
[1739298215852,0.4254989,95734.0,95727.0,0.18761528]
[1739298216146,0.4254989,95734.0,95719.0,0.1453609]
[1739298216147,0.3608,95728.0,95719.0,0.1453609]
[1739298216348,0.08276,95727.0,95719.0,0.06179138]
[1739298216548,0.2089277,95723.0,95719.0,0.06179138]
[1739298216744,0.0828,95722.0,95719.0,0.06179138]
[1739298218246,0.208931,95721.0,95719.0,0.06179138]
[1739298221658,0.2089342,95720.0,95717.0,0.00048]
[1739298222147,0.2099342,95720.0,95717.0,0.00048]
[1739298222348,0.2089375,95718.0,95717.0,0.00048]
[1739298224254,0.2099375,95718.0,95717.0,0.00048]
[1739298224656,0.002,95718.0,95717.0,0.00048]
[1739298224857,0.22183729,95718.0,95717.0,0.00048]
[1739298225051,0.2109375,95718.0,95717.0,0.00048]
[1739298226549,0.2933375,95718.0,95717.0,0.00048]
[1739298228354,0.0842,95718.0,95717.0,0.00048]
[1739298229252,0.2931376,95718.0,95717.0,0.00048]
[1739298231364,0.0842,95718.0,95717.0,0.00048]
[1739298232057,0.2927776,95718.0,95717.0,0.00048]
[1739298232362,0.2928176,95718.0,95717.0,0.00048]
[1739298232860,0.08388,95718.0,95717.0,0.00048]
[1739298233849,0.08388,95718.0,95711.0,0.2089526]
[1739298234163,0.2089423,95716.0,95711.0,0.2089526]
[1739298234761,0.2089459,95715.0,95711.0,0.2089526]
[1739298235660,0.001,95716.0,95710.0,0.0518]
[1739298235868,0.001,95716.0,95715.0,0.2089441]
[1739298236963,0.002,95716.0,95715.0,0.2089441]
[1739298237163,0.001,95716.0,95715.0,0.2089441]
[1739298237464,0.01080639,95720.0,95719.0,0.2089354]
[1739298237657,0.00015671,95723.0,95714.0,0.3608]
[1739298237857,0.00015671,95723.0,95722.0,0.2089288]
[1739298238557,0.01094346,95723.0,95714.0,0.5697444]
[1739298238759,0.01194346,95723.0,95714.0,0.5697444]
[1739298239959,0.001,95720.0,95714.0,0.5697444]
[1739298240455,0.001,95720.0,95710.0,0.0518]
[1739298240456,0.3608,95715.0,95710.0,0.0518]
[1739298242852,0.3618,95715.0,95710.0,0.0518]
[1739298243263,0.3628,95715.0,95708.0,0.3608]
[1739298243458,0.2089535,95711.0,95700.0,0.62376]
[1739298243767,0.12559664,95710.0,95701.0,0.06155116]
[1739298244062,0.3608,95705.0,95700.0,0.2618]
[1739298245068,0.2089747,95701.0,95700.0,0.2618]
[1739298245264,0.2089747,95701.0,95700.0,0.3233925]
[1739298245670,0.2089747,95701.0,95700.0,0.2618]
[1739298246167,0.3608,95705.0,95700.0,0.2618]
[1739298246470,0.3618,95705.0,95700.0,0.2618]
[1739298246667,0.001,95701.0,95671.0,0.31223606]
[1739298246867,0.12559664,95690.0,95675.0,0.3608]
[1739298247065,0.12559664,95690.0,95676.0,0.0616154]
[1739298247264,0.12559664,95690.0,95677.0,0.0616154]
[1739298247461,0.12559664,95690.0,95678.0,0.0616154]
[1739298247865,0.09532,95689.0,95679.0,0.0616154]
[1739298248068,0.3608,95682.0,95680.0,0.0616154]
[1739298248272,0.3608,95682.0,95675.0,0.3608]
[1739298248673,0.3608,95682.0,95676.0,0.06163216]
[1739298248867,0.3608,95682.0,95678.0,0.2090229]
[1739298249068,0.3608,95682.0,95679.0,0.06163216]
[1739298249274,0.3608,95682.0,95678.0,0.2090229]
[1739298249573,0.3608,95682.0,95681.0,0.2090184]
[1739298249768,0.01264741,95690.0,95688.0,0.2090021]
[1739298249974,0.01164741,95690.0,95689.0,0.4178]
[1739298250270,0.095,95695.0,95689.0,0.4178]
[1739298250271,0.15458163,95695.0,95689.0,2.03350828]
[1739298250473,0.15458163,95695.0,95694.0,0.20899]
[1739298250777,0.16544341,95695.0,95694.0,0.20899]
[1739298250966,0.16544341,95695.0,95694.0,0.27059828]
[1739298251366,0.16544341,95695.0,95694.0,0.20899]
[1739298252376,0.15458163,95695.0,95694.0,0.20899]
[1739298252765,0.15658163,95695.0,95694.0,0.20899]
[1739298252967,0.15658163,95695.0,95694.0,0.56979]
[1739298253286,0.01067963,95706.0,95694.0,0.42240868]
[1739298253474,0.09476,95713.0,95704.0,0.2089665]
[1739298253673,0.3608,95712.0,95704.0,0.2089665]
[1739298254465,0.001,95706.0,95698.0,0.00015671]
[1739298254876,0.001,95706.0,95704.0,0.2089676]
[1739298255972,0.0948,95705.0,95704.0,0.2089676]
[1739298256175,0.0948,95705.0,95704.0,0.2099676]
[1739298256381,0.0948,95705.0,95704.0,0.2109676]
[1739298256881,0.0948,95705.0,95704.0,0.2129676]
[1739298257385,0.0958,95705.0,95704.0,0.2129676]
[1739298257567,0.0958,95705.0,95704.0,0.2109676]
[1739298257773,0.0968,95705.0,95704.0,0.2697676]
[1739298258181,0.002,95705.0,95704.0,0.2697676]
[1739298265087,0.002,95705.0,95704.0,0.2129676]
[1739298274781,0.18588843,95722.0,95704.0,0.004]
[1739298274980,0.18588843,95722.0,95717.0,0.5697399]
[1739298275290,0.18588843,95722.0,95717.0,0.3608]
[1739298275491,0.3608,95727.0,95717.0,0.3608]